Cogmind - Beta 15 *** ADVENTURER MODE // 2025.09.05 @ 21:20:16 Player: Knightshade Result: Destroyed by 4Q-7ZI(R) with Subdweller Machine Gun Performance ------------- Evolutions (0) 0 Regions Visited (2) 400 Robots Destroyed (36) 180 Value Destroyed (817) 817 Prototype IDs (15) 300 Alien Tech Used (0) 0 Bonus (-50) -50 TOTAL SCORE: 1647 Bonus ------- Friendly Fire -50 Cogmind --------- Core Integrity 0/250 Matter 276/300 Energy 200/200 System Corruption 1% Temperature Cool (0) Movement Rolling (230) Ox10 Location -10/Subcaves Parts ------- > --- POWER (1) -------- Subdweller Power Source > --- PROPULSION (2) --- Wheel Wheel > --- UTILITY (2) ------ Humpback > --- WEAPON (2) ------- Assault Rifle Battle Cannon > --- INVENTORY (35) --- Subdweller Power Source Wheel Wheel Wheel Wheel Large Storage Unit Sensor Array Seismic Detector ECM Suite Core Shielding Makeshift Light Armor Plating Gun Armor Tower Shield Improved EM Shotgun Subdweller Laser Subdweller Beam Cannon Subdweller Machine Gun Subdweller Machine Gun Subdweller Machine Gun Battle Cannon Grenade Launcher Peak State ------------ > --- POWER ------------ Subdweller Power Source > --- PROPULSION ------- Wheel Wheel > --- UTILITY ---------- Large Storage Unit Makeshift Light Armor Plating > --- WEAPON ----------- Subdweller Machine Gun Battle Cannon > --- INVENTORY -------- Subdweller Power Source Wheel Wheel Humpback Sensor Array Seismic Detector ECM Suite Core Shielding Improved EM Shotgun Subdweller Laser Subdweller Beam Cannon Assault Rifle Subdweller Machine Gun Grenade Launcher [Rating: 15] Favorites ----------- Power Ion Engine Engine Ion Engine Power Core Light Nuclear Core Propulsion Light Treads Treads Light Treads Wheel Wheel Utility Large Storage Unit Device Seismic Detector Storage Large Storage Unit Protection Core Shielding Weapon Improved EM Shotgun Energy Gun Improved EM Shotgun Energy Cannon Subdweller Beam Cannon Ballistic Gun Assault Rifle Ballistic Cannon Battle Cannon Launcher Grenade Launcher Build | -11 -10 -10 ------- Run | Yrd Mat Sub Slots Evolved . | . . . Power . | . . . Propulsion . | . . . Utility . | . . . Weapon . | . . . Parts Attached 29 | 8 7 14 Power 3 | 1 . 2 Engine 2 | 1 . 1 Core 1 | . . 1 Reactor . | . . . Propulsion 7 | 2 2 3 Treads 2 | 2 . . Leg . | . . . Wheel 5 | . 2 3 Hover . | . . . Flight . | . . . Utility 7 | 2 2 3 Device 1 | 1 . . Storage 3 | 1 1 1 Processor . | . . . Hackware . | . . . Protection 3 | . 1 2 Artifact . | . . . Weapon 12 | 3 3 6 Energy Gun 6 | 1 3 2 Energy Cannon 1 | . . 1 Ballistic Gun 3 | 2 . 1 Ballistic Cannon 1 | . . 1 Launcher 1 | . . 1 Special Weapon . | . . . Impact Weapon . | . . . Slashing Weapon . | . . . Piercing Weapon . | . . . Special Melee Weapon . | . . . Unidentified Prototypes 1 | . 1 . Parts Lost 7 | . . 7 Power 2 | . . 2 Propulsion 2 | . . 2 Utility 1 | . . 1 Weapon 2 | . . 2 Highest Loss Streak 2 | . . 2 To Critical Strikes . | . . . Average Backups 9 | 2 7 11 Power . | . . . Propulsion 1 | 1 1 2 Utility 4 | . 3 4 Weapon 3 | . 2 4 Tool/Special . | . . . Unused Backups 16 | . 4 12 Power 2 | . . 2 Propulsion 4 | . 1 3 Utility 7 | . 3 4 Weapon 3 | . . 3 Tool/Special . | . . . Average Slot Usage (%) 94 | . 99 90 Engine 11 | . 14 8 Core 2 | . . 5 Treads 12 | . 26 . Wheel 13 | . 1 23 Device 2 | . 6 . Storage 14 | . 14 14 Protection 8 | . 7 10 Energy Gun 16 | . 15 17 Ballistic Gun 9 | . 12 7 Ballistic Cannon 1 | . . 2 Peak Build Rating 15 | 7 12 15 Average Rating 11 | 5 9 12 On Entrance 6 | . 7 12 Naked Turns . | . . . Heaviest Build 216 | 15 32 216 Greatest Support 40 | 40 40 20 Greatest Overweight (x) 10 | . 3 10 Average Overweight (x) 1 | . . 3 Largest Inventory Capacity 35 | 8 15 35 Average Capacity 15 | 7 10 20 Most Carried 22 | 4 9 22 Average Carried 9 | 3 7 12 Final Capacity 35 | 8 15 35 Final Carried 22 | 4 9 22 Class Distribution -------------------- 69% | Mutant 16% | Scavenger-Mutant 14% | Hauler-Mutant Dominant Class ---------------- Mutant | -10/Materials Mutant | -10/Subcaves Resources | -11 -10 -10 ----------- Run | Yrd Mat Sub Matter Collected 877 | 316 204 357 Remotely . | . . . Salvage Created 1358 | 137 492 729 Parts 94 | 9 34 51 Haulers Intercepted 2 | . 2 . Recyclers Shooed . | . . . Parts Field Recycled . | . . . Retrieved Matter . | . . . Parts Self-Destructed 13 | . . 13 Prevented 1 | . . 1 Kills | -11 -10 -10 ------- Run | Yrd Mat Sub Combat Hostiles Destroyed 26 | . 10 16 Guns 21 | . 9 12 Cannons 1 | . . 1 AOE 2 | . . 2 Classes Destroyed 11 | 2 6 3 Worker 1 | . 1 . Builder 1 | . 1 . Tunneler 2 | 2 . . Hauler 2 | . 2 . Recycler 1 | 1 . . Watcher 3 | . 3 . Swarmer 10 | . 6 4 Grunt 4 | . 4 . Artisan 3 | . . 3 Cobbler 1 | . . 1 Subdweller 12 | . . 12 Best Kill Streak 4 | 2 3 4 Combat Bots Only 4 | . 3 4 Max Kills in Single Turn 2 | 1 2 2 Gunslinging 1 | . 1 . Exploded 1 | . . 1 Melee . | . . . Uniques/NPCs Destroyed . | . . . Combat | -11 -10 -10 -------- Run | Yrd Mat Sub Hostile Shots Fired 112 | . 36 76 Missed 41 | . 13 28 Hits 71 | . 23 48 Projectile 71 | . 23 48 Critical Strikes 1 | . . 1 Damage Taken 1054 | . 235 819 Core 252 | . 73 179 Absorbed by Shields . | . . . Redirected to Shielding 7 | . 7 . Ignored by Resistances 288 | . 72 216 Core Remaining (%) 100 | 100 . . Volleys Fired 102 | 7 35 60 Largest 2 | 2 2 2 Hottest 125 | 50 90 125 Shots Fired 197 | 13 70 114 Gun 180 | 13 70 97 Cannon 11 | . . 11 Launcher 6 | . . 6 Special . | . . . Kinetic 96 | 12 48 36 Thermal 15 | 1 . 14 Explosive 6 | . . 6 Electromagnetic 80 | . 22 58 Robot Hit Streak 46 | 7 16 46 Robot Miss Streak 2 | 1 1 2 Penetration Max . | . . . Secondary Targets 3 | . 2 1 Max Gunslinging Chain 1 | . 1 1 Shots Hit Robots 136 | 9 50 77 Core Hits 65 | 4 23 38 Critical Kills . | . . . Critical Parts Destroyed . | . . . Critical Strikes . | . . . Melee Attacks . | . . . Impact . | . . . Slashing . | . . . Piercing . | . . . Sneak Attacks . | . . . Combat Hostiles . | . . . Follow-up Attacks . | . . . Damage Inflicted 2523 | 130 851 1542 Guns 1982 | 130 797 1055 Cannons 82 | . . 82 Explosions 459 | . 54 405 Melee . | . . . Ramming . | . . . Kinetic 717 | 117 432 168 Thermal 302 | 13 54 235 Explosive 331 | . . 331 Electromagnetic 1173 | . 365 808 Impact . | . . . Slashing . | . . . Piercing . | . . . Highest Corruption 1 | . 1 1 Average Corruption 1 | . 1 1 Corruption Purged . | . . . Corruption Blocked . | . . . Effects 15 | . 3 12 Message Errors 3 | . 1 2 Matter Fused 2 | . . 2 Heat Flow Errors 3 | . 1 2 Energy Discharges 4 | . 1 3 Data Loss (minor) 1 | . . 1 Misfires 2 | . . 2 Overload Shots . | . . . Overflow Damage 17 | . . 17 Projectiles . | . . . Explosions 17 | . . 17 Melee . | . . . Knockbacks 1 | . . 1 Impact . | . . . Kinetic 1 | . . 1 Secondary . | . . . Self-Inflicted Damage 98 | . 45 53 Shots 6 | . 2 4 Rammed . | . . . Targets Rammed . | . . . Kicked . | . . . Crushed . | . . . Highest Temperature 273 | . 120 273 Average Temperature 66 | . 32 116 Received Heat Transfer 491 | . 87 404 Siege Activations . | . . . Martial Activations . | . . . Shielding Activations . | . . . Robots Disrupted . | . . . Combat Hostiles . | . . . Robots Corrupted 3 | . 1 2 Combat Hostiles 2 | . 1 1 Parts Fried 10 | . 2 8 Impact Corruptions . | . . . Robots Melted . | . . . Combat Hostiles . | . . . Parts Melted . | . . . Heat Transferred 399 | 37 50 312 Parts Sabotaged . | . . . Parts Stolen . | . . . Parts Stripped . | . . . Power Chain Reactions 4 | . 2 2 Alert | -11 -10 -10 ------- Run | Yrd Mat Sub Maximum Alert Level . | . . . Low Security (%) 100 | 100 100 . Level 1 . | . . . Level 2 . | . . . Level 3 . | . . . Level 4 . | . . . Level 5 . | . . . High Security . | . . . Max Security . | . . . Peak Influence 90 | 5 90 . Initial . | . . . Average 16 | 1 17 . Influence Increases 607 | 15 422 170 Destroy 0b10 Robot/C 280 | . 200 80 Destroy 0b10 Robot/NC 50 | 15 35 . Destroy Leader 60 | . 60 . Successful Hack 19 | . 19 . Select Force Hacks 60 | . 60 . Disable Machine 9 | . 9 . Destroy Structure 9 | . 9 . Lose Combat Pursuer 120 | . 30 90 Influence Decreases 607 | 15 422 170 Time Decay 577 | 15 422 140 Lost Part 30 | . . 30 Squads Dispatched 2 | . 2 . Investigation 2 | . 2 . Extermination . | . . . Reinforcement . | . . . Assault . | . . . Garrison . | . . . Intercept . | . . . Searches Triggered . | . . . Construction Impeded . | . . . Haulers Reinforced . | . . . Active Scanning Responses . | . . . Cargo Convoy Interrupts . | . . . Stealth | -11 -10 -10 --------- Run | Yrd Mat Sub Distress Signals . | . . . Communications Jammed . | . . . Distress Signals . | . . . Times Spotted 41 | . 18 23 Peak Tracking Total 6 | . 3 6 Tactical Retreats 4 | . 2 2 Traps | -11 -10 -10 ------- Run | Yrd Mat Sub Traps Triggered 3 | . 2 1 Indirectly . | . . . Trap Hack Attempts . | . . . Triggered . | . . . Disarmed . | . . . Reprogrammed . | . . . Reused . | . . . Traps Extracted . | . . . Installed . | . . . Triggered . | . . . Machines | -11 -10 -10 ---------- Run | Yrd Mat Sub Machines Disabled 3 | . 1 2 Max in Single Turn 1 | . 1 1 Machines Repaired . | . . . Machines Dismantled . | . . . Machines Sabotaged . | . . . Overloaded Fab Kills . | . . . Hacking | -11 -10 -10 --------- Run | Yrd Mat Sub Machines Accessed 10 | . 8 2 Terminals 6 | . 6 . Fabricators . | . . . Repair Stations . | . . . Recycling Units 2 | . 2 . Scanalyzers . | . . . Garrison Access . | . . . Total Hacks 38 | . 32 6 Successful 27 | . 21 6 Failed 10 | . 10 . Catastrophic 1 | . 1 . Database Lockouts 1 | . 1 . Manual 26 | . 26 . Terminals 28 | . 28 . Fabricators . | . . . Repair Stations . | . . . Recycling Units 4 | . 4 . Scanalyzers . | . . . Garrison Access . | . . . Terminal Hacks 11 | . 5 6 Record 5 | . . 5 Prototype ID Bank 3 | . 3 . Terminal Index 1 | . 1 . Recycling Unit Index 1 | . 1 . Proto ID Catalog 1 | . . 1 Fabricator Hacks . | . . . Repair Station Hacks . | . . . Recycling Unit Hacks 2 | . 2 . Report Inventory 2 | . 2 . Scanalyzer . | . . . Garrison Access Hacks . | . . . Unauthorized Hacks 14 | . 14 . Terminals 12 | . 12 . Track 1 | . 1 . Botnet 6 | . 6 . Skim 5 | . 5 . Fabricators . | . . . Repair Stations . | . . . Recycling Units 2 | . 2 . Tunnel 2 | . 2 . Scanalyzers . | . . . Garrison Access . | . . . Data Cores Recovered . | . . . Used . | . . . Hacking Detections 6 | . 6 . Full Trace Events . | . . . Feedback Events . | . . . Feedback Blocked . | . . . Robot Schematics Acquired . | . . . Robots Built . | . . . Authchips . | . . . Time . | . . . Total Robot Build Rating . | . . . Part Schematics Acquired . | . . . Parts Built . | . . . Authchips . | . . . Time . | . . . Total Part Build Rating . | . . . Parts Repaired . | . . . Time . | . . . Parts Recycled . | . . . Recycled Matter . | . . . Retrieved Matter . | . . . Retrieved Components . | . . . Parts Scanalyzed . | . . . Part Schematics Acquired . | . . . Parts Damaged . | . . . Bothacking | -11 -10 -10 ------------ Run | Yrd Mat Sub Used RIF Installer . | . . . Robots Hacked . | . . . Non-combat . | . . . Combat . | . . . Robot Hacks Applied . | . . . Relay Couplers Released . | . . . Fabnet Peak Effective % . | . . . Robots Rewired . | . . . Allies Hacked . | . . . Hacks Repelled . | . . . Allies | -11 -10 -10 -------- Run | Yrd Mat Sub Total Allies . | . . . Largest Group . | . . . Highest-Rated Group . | . . . Highest-Rated Ally . | . . . Total Orders . | . . . Ally Attacks . | . . . Total Damage . | . . . Kills . | . . . Allies Corrupted . | . . . Allies Melted . | . . . Intel | -11 -10 -10 ------- Run | Yrd Mat Sub Active Infowar (turns) 758 | 51 707 . Seismic 758 | 51 707 . Robot Analysis Total . | . . . Derelict Logs Recovered . | . . . Drone Launches . | . . . Drone Recoveries . | . . . Exploration | -11 -10 -10 ------------- Run | Yrd Mat Sub Turns Passed 3499 | 139 1601 1759 Spaces Moved 1871 | 68 761 1042 Core 4 | 4 . . Treads 785 | 64 721 . Legs . | . . . Wheels 1082 | . 40 1042 Hover . | . . . Flight . | . . . Fastest Speed 50 | 50 95 95 Average Speed 147 | 153 176 125 Slowest Speed 240 | 160 240 230 Overloaded Moves . | . . . Propulsion Burnouts . | . . . Robots Hopped . | . . . Potential Cave-ins . | . . . Cave-ins Triggered . | . . . Exploration Rate (%) 56 | 5 94 69 Regions Visited 2 Branch Regions 1 Pre-discovered Areas 3 | . 2 1 Known Exits Taken 1 | . 1 . Unknown Exits Taken 1 | 1 . . Scrap Searched 5 | . . 5 Spaces Dug . | . . . Terrain Destroyed 35 | . 7 28 Melee . | . . . Projectile . | . . . AOE 35 | . 7 28 Terrain Rammed . | . . . Walls Destroyed . | . . . Machines Disabled . | . . . Actions | -11 -10 -10 --------- Run | Yrd Mat Sub Total 2404 | 86 949 1369 Wait 350 | . 130 220 Move 1869 | 67 760 1042 Hop . | . . . Pick Up 40 | 4 10 26 Fast Attach 12 | 7 1 4 Attach 4 | . . 4 Detach . | . . . Swap 18 | 1 6 11 Drop 9 | . 7 2 Fire 102 | 7 35 60 Melee . | . . . Ram . | . . . Kick . | . . . Crush . | . . . Escape Stasis . | . . . Rewire . | . . . Trap . | . . . Miscellaneous . | . . . Route ------- -11/Scrapyard -10/Materials (discovered 6 exits: *Mat x3 / *Min x2 / *Sub) -10/Subcaves (discovered 3 exits: [*Mat x2] / [*Rec]) History --------- Turn | Location | Event 6 | -11/Scrapyard | Discovered new exit (range 15) 140 | -11/Scrapyard | Entered Materials 289 | -10/Materials | Discovered new exit (range 15) 312 | -10/Materials | Build established: Mutant 410 | -10/Materials | Discovered new exit (range 5) 707 | -10/Materials | Learned location of 1 exit from Recycling 772 | -10/Materials | Discovered new exit (range 16) 773 | -10/Materials | Loaded intel: 1 repair station location 872 | -10/Materials | Identified exit to Mines 872 | -10/Materials | Identified exit to Subcaves 872 | -10/Materials | Identified exit to Materials 880 | -10/Materials | Central database locked down 905 | -10/Materials | Learned Storage trap positions 965 | -10/Materials | Learned Storage trap positions 1741 | -10/Materials | Entered Subcaves 1742 | -10/Subcaves | Approached by a straggling Scientist 2252 | -10/Subcaves | Ambushed by Subdweller buried in earth 2298 | -10/Subcaves | Discovered new exit (range 11) 2324 | -10/Subcaves | Shifting Twisted Machinery released Sub. Machine Gun 2340 | -10/Subcaves | Discovered new exit (range 14) 2405 | -10/Subcaves | Ambushed by angry Subdweller bent on revenge 2671 | -10/Subcaves | Learned location of Zion (-7) 2671 | -10/Subcaves | Met a Zionite searching for "candidates" 2706 | -10/Subcaves | Build established: Scavenger-Mutant 2729 | -10/Subcaves | Core integrity fell below 50% 2921 | -10/Subcaves | Visited Clippyterm 2924 | -10/Subcaves | Learned Factory stockpile data 2993 | -10/Subcaves | Visited 4L-MR0's lab 3060 | -10/Subcaves | Found Tower Shield 3201 | -10/Subcaves | A Subdweller sparked back to life 3201 | -10/Subcaves | A Subdweller sparked back to life 3206 | -10/Subcaves | Core integrity fell below 20% 3235 | -10/Subcaves | Found Gun Armor 3319 | -10/Subcaves | Build established: Hauler-Mutant 3334 | -10/Subcaves | Disturbed a concealed Subdweller 3401 | -10/Subcaves | Discovered new exit (range 8) 3500 | -10/Subcaves | Destroyed by 4Q-7ZI(R) with Subdweller Machine Gun Last Messages --------------- 03239_ Acquired 5 matter. 03307_ Acquired 48 matter. 03319_ Acquired 44 matter. 03334_ 3O-XLW(R) angrily emerges from the Twisted Machinery. 03338_ 3O-XLW(R) destroyed. 03343_ Searching scrap... 03343_ Found Battle Cannon. 03343_ Found Sub. Machine Gun. 03343_ Found 65 Matter. 03344_ Acquired 65 matter. 03348_ Acquired Battle Cannon. 03351_ Acquired Sub. Machine Gun. 03354_ Searching scrap... 03354_ Found Sub. Power Source. 03354_ Found 30 Matter. 03355_ Acquired 23 matter. 03359_ Acquired Sub. Power Source. 03401_ EXIT=FOUND 03490_ 4Q-7ZI(R): "SUBSUB!" 03494_ 4Q-7ZI(R) knocked back. Map ----- +----------------------------------------------------+ | ??????????????????????????????????# # | | ??????????????????????????????????# # | | ??????????????????????????????????# # ## | | ??????????????????????????????????# # #? | | ????????????????????????????????### #? | | ???????????????????????????????## #? | | ??????????????????????????????## ####? | | ???????????????????????????#### < #???? | | ???????????????????????????# ##???? | | ???????????????????????????# ## #????? | | ?????????????????????######## ### #????? | | ?????????????????????# ## #?## #????? | | ?????????????????????# #??# ##???? | | ?????????????????????## #??# #???? | | ??????????????????????# ## ### #?? | | ?????????????????????# ??# ### ??? | | ??????????????####?#### ??## #### #?? | | ??????????????# ### ##??# % #?? | | ??????????????# ## #### #? | | ??????????????# ##### ##? | | ???????????????# #???????? | | ???????????????## ### #??????? | | ????????????????# ##??# #?????? | | ????????????????## #####????# #?????? | | ?????????????????# #?????????####?????? | | ?????????????????#@ ##??????????????????? | | ????????????????# #???????????????????? | | ????????????????#R #??????????????????? | | ???????????????#<% # ?????????????????? | | ?????????????? # ???????????????? | | ?????????????? # ?????????????? | | ????????????? #<< # ???????????? | | ??????????????###< # ??????????? | | ????????????????# ### ???????????? | | ????????????????## ##?? ##???????????? | | ?????????????????? ????? ###????????????? | | ???????????????#? ????? #??????????????? | | ???????????????# ????? ???????????????? | | ??????????????## ????? ##?????????????? | | ??????????????# #????? ##????????????? | | ??????????????# ##???? ##???????????? | | ??????????????# ????? #???????????? | | ??????????????# ????? #???????????? | | ??????????????? ???## #????????????? | | ???????????????? ##??# #?????????????? | | ?????????????????# ##?# #?????????????? | | ?????????????????# ### #?????????????? | | ?????????????????# ##????????????? | | ????????????????## #????????????? | | ????????????????# #?????????????? | +----------------------------------------------------+ Best States ------------- Heat Dissipation 25 Energy Generation 15 Energy Capacity 250 Matter Stores 300 Matter Capacity 300 Sight Range 16 Terrain Scan Density 10 Armor Coverage 150 Resistance: KI 20 Resistance: TH 20 Resistance: EX 20 Resistance: EM 20 Resistance: I 20 Resistance: S 20 Resistance: P 20 Core Shielding 20 Evasion (%) 41 Recoil Reduction 2 Offensive Hacking 10 Item Schematics ----------------- None Robot Schematics ------------------ None Fabricated ------------ Nothing Repaired ---------- Nothing Alien Tech Used ----------------- None Achievements -------------- None Challenges ------------ None Game ------ Seed ScanHardcellShifter Manual? 0 Play Time 00:23:24 Cumulative 129.0 hours Start 2025.09.05 @ 20:42:49 End 2025.09.05 @ 21:20:16 Sessions 1 Manual Loads 0 Difficulty Adventurer Special Mode None Game No. 90 Rogue 0 Adventurer 90 Explorer 0 Win Type - Total 0 Types 0/0/0/0/0/0/0/0/0/0 Lore% 33 Gallery% 45 Achievement% 39 Wizard Run 0 Options --------- Layout 0 ASCII 0 Keyboard 0 Movement Mouse Keybinds 0 Fullscreen 1 Font 18/SmallcapsGlow Map View 76x50 Zoom Use 0% Tactical HUD 1 Map Filters NONE Filters NONE Steam 1 RUN: 2bccd1a7-6cec-4417-b64f-1c802e6ff883